[Event "*** Titled Tuesday Blitz"]
[Site "Chess.com"]
[Date "2020.11.24"]
[Round "1"]
[White "boasovietica"]
[Black "rpragchess"]
[Result "0-1"]
[WhiteElo "2440"]
[BlackElo "2895"]
[TimeControl "180+1"]
[EndTime "10:23:52 PST"]
[Termination "rpragchess won on time"]

1. e4 {[%clk 0:02:58.4]} 1... e5 {[%clk 0:02:58.9]} 2. Nf3 {[%clk 0:02:58.2]}
2... d6 {[%clk 0:02:59.3]} 3. d4 {[%clk 0:02:56.1]} 3... exd4 {[%clk 0:02:59.9]}
4. Nxd4 {[%clk 0:02:55.4]} 4... Nf6 {[%clk 0:03:00.5]} 5. Nc3 {[%clk 0:02:55.4]}
5... Be7 {[%clk 0:03:01.2]} 6. Bd3 {[%clk 0:02:40.1]} 6... O-O {[%clk
0:03:00.1]} 7. O-O {[%clk 0:02:40.3]} 7... Re8 {[%clk 0:02:53.3]} 8. Re1 {[%clk
0:02:39.8]} 8... Nbd7 {[%clk 0:02:49.7]} 9. h3 {[%clk 0:02:35.9]} 9... Bf8
{[%clk 0:02:48.5]} 10. Bg5 {[%clk 0:02:25.7]} 10... h6 {[%clk 0:02:35.7]} 11.
Bh4 {[%clk 0:02:25.2]} 11... g6 {[%clk 0:02:36.2]} 12. Qf3 {[%clk 0:01:52.7]}
12... c6 {[%clk 0:01:54.9]} 13. Rad1 {[%clk 0:01:17.3]} 13... Bg7 {[%clk
0:01:52.3]} 14. Nb3 {[%clk 0:01:10.2]} 14... Qc7 {[%clk 0:01:45.9]} 15. Bg3
{[%clk 0:01:06.8]} 15... Ne5 {[%clk 0:01:44.5]} 16. Qe2 {[%clk 0:01:07]} 16...
a5 {[%clk 0:01:34.1]} 17. a4 {[%clk 0:01:00.2]} 17... Qb6 {[%clk 0:01:32.9]} 18.
Qd2 {[%clk 0:00:49.4]} 18... Be6 {[%clk 0:01:28.8]} 19. Bf1 {[%clk 0:00:46.6]}
19... Rad8 {[%clk 0:01:22.9]} 20. Nd4 {[%clk 0:00:42.3]} 20... Bc8 {[%clk
0:01:18.6]} 21. f4 {[%clk 0:00:33.7]} 21... Ned7 {[%clk 0:00:45.5]} 22. Bf2
{[%clk 0:00:33.8]} 22... Qc7 {[%clk 0:00:43.5]} 23. Nb3 {[%clk 0:00:32.8]} 23...
b6 {[%clk 0:00:37.6]} 24. g3 {[%clk 0:00:32.4]} 24... Nf8 {[%clk 0:00:37.1]} 25.
Bg2 {[%clk 0:00:32.4]} 25... Bb7 {[%clk 0:00:37.2]} 26. Re2 {[%clk 0:00:30.7]}
26... Ne6 {[%clk 0:00:37.1]} 27. Qe1 {[%clk 0:00:24.1]} 27... h5 {[%clk
0:00:35.2]} 28. Be3 {[%clk 0:00:22.5]} 28... Ba6 {[%clk 0:00:26.9]} 29. Red2
{[%clk 0:00:21.2]} 29... Bc4 {[%clk 0:00:22.2]} 30. Qf2 {[%clk 0:00:20.6]} 30...
Nc5 {[%clk 0:00:17.9]} 31. Nxc5 {[%clk 0:00:19.8]} 31... bxc5 {[%clk 0:00:18.8]}
32. e5 {[%clk 0:00:09]} 32... dxe5 {[%clk 0:00:18.5]} 33. Rxd8 {[%clk
0:00:08.9]} 33... Rxd8 {[%clk 0:00:18.8]} 34. Rxd8+ {[%clk 0:00:09.3]} 34...
Qxd8 {[%clk 0:00:19.7]} 35. fxe5 {[%clk 0:00:09.8]} 35... Nd5 {[%clk 0:00:13.9]}
36. Nxd5 {[%clk 0:00:07.8]} 36... Bxd5 {[%clk 0:00:10.7]} 37. Bxd5 {[%clk
0:00:04.5]} 37... Qxd5 {[%clk 0:00:10.2]} 38. Qd2 {[%clk 0:00:03.9]} 38... Qxe5
{[%clk 0:00:09.1]} 39. Bf4 {[%clk 0:00:03.5]} 39... Qd4+ {[%clk 0:00:08.9]} 40.
Qxd4 {[%clk 0:00:03]} 40... Bxd4+ {[%clk 0:00:08.9]} 41. Kf1 {[%clk 0:00:03.3]}
41... c4 {[%clk 0:00:07.5]} 42. Bd2 {[%clk 0:00:02.8]} 42... Bb6 {[%clk
0:00:07.8]} 43. Bc3 {[%clk 0:00:02.4]} 43... Kf8 {[%clk 0:00:08.1]} 44. Ke2
{[%clk 0:00:02.9]} 44... Ke7 {[%clk 0:00:08.8]} 45. Kf3 {[%clk 0:00:03.4]} 45...
Ke6 {[%clk 0:00:09.4]} 46. Ke4 {[%clk 0:00:02.2]} 46... f5+ {[%clk 0:00:09.3]}
47. Kf3 {[%clk 0:00:02.7]} 47... Bc7 {[%clk 0:00:09.5]} 48. g4 {[%clk
0:00:01.7]} 48... fxg4+ {[%clk 0:00:05.2]} 49. hxg4 {[%clk 0:00:02.6]} 49... Kd5
{[%clk 0:00:05.5]} 50. gxh5 {[%clk 0:00:02.8]} 50... gxh5 {[%clk 0:00:05.7]} 51.
Bf6 {[%clk 0:00:03.1]} 51... Ke6 {[%clk 0:00:05.5]} 52. Bc3 {[%clk 0:00:03.2]}
52... Kf5 {[%clk 0:00:06]} 53. Bg7 {[%clk 0:00:02.9]} 53... Be5 {[%clk
0:00:05.8]} 54. Bf8 {[%clk 0:00:02.9]} 54... Bxb2 {[%clk 0:00:04.9]} 55. Bc5
{[%clk 0:00:03.4]} 55... Bc3 {[%clk 0:00:05.2]} 56. Bb6 {[%clk 0:00:03.7]} 56...
Bb4 {[%clk 0:00:05.4]} 57. Bd4 {[%clk 0:00:03.3]} 57... Be1 {[%clk 0:00:05.1]}
58. Bb6 {[%clk 0:00:03.1]} 58... h4 {[%clk 0:00:05.4]} 59. Ke2 {[%clk
0:00:03.6]} 59... Bb4 {[%clk 0:00:05.2]} 60. Kf3 {[%clk 0:00:04.2]} 60... Kg5
{[%clk 0:00:05.1]} 61. Be3+ {[%clk 0:00:04]} 61... Kh5 {[%clk 0:00:04.7]} 62.
Bb6 {[%clk 0:00:03.3]} 62... Be1 {[%clk 0:00:04.9]} 63. Ke2 {[%clk 0:00:03.2]}
63... h3 {[%clk 0:00:05.4]} 64. Bc7 {[%clk 0:00:02.7]} 64... Bb4 {[%clk
0:00:04.2]} 65. Kf3 {[%clk 0:00:02.5]} 65... Be1 {[%clk 0:00:02.8]} 66. Ke2
{[%clk 0:00:01.6]} 66... Bb4 {[%clk 0:00:02.2]} 67. Kf3 {[%clk 0:00:02.1]} 67...
Kh4 {[%clk 0:00:02.4]} 0-1

[Event "*** Titled Tuesday Blitz"]
[Site "Chess.com"]
[Date "2020.11.24"]
[Round "1"]
[White "goldenpuppy"]
[Black "Fy_Rakotomaharo"]
[Result "1/2-1/2"]
[WhiteElo "2385"]
[BlackElo "2711"]
[TimeControl "180+1"]
[EndTime "10:24:00 PST"]
[Termination "Game drawn - insufficient material"]

1. e4 {[%clk 0:03:00.9]} 1... c5 {[%clk 0:02:58.6]} 2. Nf3 {[%clk 0:03:00.1]}
2... Nc6 {[%clk 0:02:59.2]} 3. d4 {[%clk 0:03:00.1]} 3... cxd4 {[%clk
0:03:00.1]} 4. Nxd4 {[%clk 0:03:00.3]} 4... e5 {[%clk 0:02:59.9]} 5. Nb5 {[%clk
0:02:59.8]} 5... d6 {[%clk 0:03:00.4]} 6. c4 {[%clk 0:02:59.6]} 6... Be7 {[%clk
0:03:00.1]} 7. N1c3 {[%clk 0:02:59.8]} 7... a6 {[%clk 0:03:00.7]} 8. Na3 {[%clk
0:03:00.4]} 8... Be6 {[%clk 0:03:01.4]} 9. Nc2 {[%clk 0:02:57.9]} 9... Rc8
{[%clk 0:03:01.1]} 10. Ne3 {[%clk 0:02:58]} 10... Nf6 {[%clk 0:03:00.1]} 11. Be2
{[%clk 0:02:56]} 11... Nd4 {[%clk 0:03:00.1]} 12. O-O {[%clk 0:02:55.5]} 12...
O-O {[%clk 0:02:54.6]} 13. Ned5 {[%clk 0:02:52]} 13... Nxd5 {[%clk 0:02:53.3]}
14. Nxd5 {[%clk 0:02:50]} 14... Bg5 {[%clk 0:02:53.6]} 15. Bxg5 {[%clk
0:02:47.9]} 15... Qxg5 {[%clk 0:02:54.5]} 16. Bd3 {[%clk 0:02:45.1]} 16... Bxd5
{[%clk 0:02:49.2]} 17. cxd5 {[%clk 0:02:44.4]} 17... Rc7 {[%clk 0:02:46.7]} 18.
Kh1 {[%clk 0:02:35.3]} 18... Rfc8 {[%clk 0:02:46]} 19. g3 {[%clk 0:02:30.4]}
19... h5 {[%clk 0:02:33.5]} 20. f4 {[%clk 0:02:29]} 20... Qg4 {[%clk 0:02:33.2]}
21. fxe5 {[%clk 0:02:25.6]} 21... dxe5 {[%clk 0:02:34.1]} 22. Qxg4 {[%clk
0:02:18.7]} 22... hxg4 {[%clk 0:02:33.3]} 23. Rad1 {[%clk 0:02:19.1]} 23... g6
{[%clk 0:02:26.9]} 24. Kg2 {[%clk 0:02:17.8]} 24... Kg7 {[%clk 0:02:25.4]} 25.
h3 {[%clk 0:02:17.5]} 25... gxh3+ {[%clk 0:02:19.2]} 26. Kxh3 {[%clk 0:02:18.4]}
26... a5 {[%clk 0:02:19.3]} 27. Rf2 {[%clk 0:02:13.9]} 27... Rc1 {[%clk
0:02:16.1]} 28. Rxc1 {[%clk 0:02:09.6]} 28... Rxc1 {[%clk 0:02:17]} 29. d6
{[%clk 0:02:07.2]} 29... Rc6 {[%clk 0:02:14.5]} 30. d7 {[%clk 0:01:50.2]} 30...
Rd6 {[%clk 0:02:12.3]} 31. Bc4 {[%clk 0:01:47.8]} 31... Rxd7 {[%clk 0:02:10.8]}
32. Bd5 {[%clk 0:01:48.1]} 32... f5 {[%clk 0:02:07.9]} 33. Rd2 {[%clk
0:01:45.4]} 33... Kf6 {[%clk 0:02:04.5]} 34. Rd3 {[%clk 0:01:44]} 34... b5
{[%clk 0:01:51.6]} 35. Rc3 {[%clk 0:01:43.4]} 35... Rh7+ {[%clk 0:01:27.7]} 36.
Kg2 {[%clk 0:01:42.5]} 36... f4 {[%clk 0:01:28.6]} 37. gxf4 {[%clk 0:01:38]}
37... exf4 {[%clk 0:01:29.5]} 38. Rc8 {[%clk 0:01:32.7]} 38... g5 {[%clk
0:01:28.3]} 39. Rf8+ {[%clk 0:01:30.8]} 39... Ke7 {[%clk 0:01:19.5]} 40. Rg8
{[%clk 0:01:29.1]} 40... Kf6 {[%clk 0:01:14.1]} 41. Rf8+ {[%clk 0:01:28.5]}
41... Ke5 {[%clk 0:01:08.1]} 42. Re8+ {[%clk 0:01:26.5]} 42... Kd6 {[%clk
0:01:04.5]} 43. Rg8 {[%clk 0:01:25.6]} 43... Rh5 {[%clk 0:01:04.6]} 44. Bf7
{[%clk 0:01:21.4]} 44... f3+ {[%clk 0:01:05]} 45. Kg3 {[%clk 0:01:20.9]} 45...
Rh7 {[%clk 0:01:04.7]} 46. Bd5 {[%clk 0:01:18.8]} 46... Rh1 {[%clk 0:01:00.5]}
47. Kf2 {[%clk 0:01:13.3]} 47... Rh2+ {[%clk 0:01:00.2]} 48. Ke3 {[%clk
0:01:13.2]} 48... f2 {[%clk 0:00:50.7]} 49. Rf8 {[%clk 0:01:13]} 49... Nc2+
{[%clk 0:00:46.4]} 50. Ke2 {[%clk 0:01:10.9]} 50... Ke5 {[%clk 0:00:37.9]} 51.
Rf5+ {[%clk 0:01:06.6]} 51... Kd4 {[%clk 0:00:36.1]} 52. Rxf2 {[%clk 0:01:05.8]}
52... Rxf2+ {[%clk 0:00:31.8]} 53. Kxf2 {[%clk 0:01:06.7]} 53... Ne3 {[%clk
0:00:32.1]} 54. Bc6 {[%clk 0:01:05.2]} 54... b4 {[%clk 0:00:32.6]} 55. Kg3
{[%clk 0:01:04.9]} 55... Nd1 {[%clk 0:00:31.6]} 56. b3 {[%clk 0:01:00.9]} 56...
Nc3 {[%clk 0:00:31.7]} 57. Kg4 {[%clk 0:00:57.7]} 57... Nxa2 {[%clk 0:00:25.4]}
58. Kxg5 {[%clk 0:00:57]} 58... Ke5 {[%clk 0:00:25.8]} 59. Kg4 {[%clk
0:00:53.2]} 59... Nc1 {[%clk 0:00:22.6]} 60. Bd5 {[%clk 0:00:50.7]} 60... Nd3
{[%clk 0:00:16.7]} 61. Kf3 {[%clk 0:00:50.1]} 61... Nc5 {[%clk 0:00:17.6]} 62.
Ke3 {[%clk 0:00:49]} 62... Nd7 {[%clk 0:00:17.7]} 63. Kd3 {[%clk 0:00:46.3]}
63... Nb6 {[%clk 0:00:18.3]} 64. Bc6 {[%clk 0:00:44.8]} 64... Kd6 {[%clk
0:00:18.1]} 65. Bb5 {[%clk 0:00:44.1]} 65... Kc5 {[%clk 0:00:19]} 66. Be8 {[%clk
0:00:43.5]} 66... Nc8 {[%clk 0:00:16]} 67. Bf7 {[%clk 0:00:43.4]} 67... Nd6
{[%clk 0:00:14.3]} 68. Be6 {[%clk 0:00:42.9]} 68... Nb5 {[%clk 0:00:14.7]} 69.
e5 {[%clk 0:00:38.9]} 69... Nc3 {[%clk 0:00:14.1]} 70. Bc4 {[%clk 0:00:37.7]}
70... Na2 {[%clk 0:00:11.2]} 71. e6 {[%clk 0:00:37.3]} 71... Kd6 {[%clk
0:00:11.7]} 72. Kd4 {[%clk 0:00:35.6]} 72... Nc3 {[%clk 0:00:10.8]} 73. Kd3
{[%clk 0:00:33.6]} 73... Nd1 {[%clk 0:00:10.1]} 74. Ke2 {[%clk 0:00:32.4]} 74...
Nb2 {[%clk 0:00:08.6]} 75. Bd5 {[%clk 0:00:27]} 75... a4 {[%clk 0:00:06.9]} 76.
bxa4 {[%clk 0:00:25.9]} 76... Nxa4 {[%clk 0:00:07.8]} 77. Bb3 {[%clk 0:00:22.7]}
77... Nc5 {[%clk 0:00:07.3]} 78. Bc4 {[%clk 0:00:22.7]} 78... Ne4 {[%clk
0:00:04.3]} 79. Kd3 {[%clk 0:00:22.5]} 79... Nc5+ {[%clk 0:00:04.5]} 80. Kc2
{[%clk 0:00:22]} 80... Ke7 {[%clk 0:00:04.8]} 81. Kb2 {[%clk 0:00:21.9]} 81...
Kd6 {[%clk 0:00:04.2]} 82. Bb3 {[%clk 0:00:22.8]} 82... Nd3+ {[%clk 0:00:03.5]}
83. Kc2 {[%clk 0:00:22.8]} 83... Ne5 {[%clk 0:00:04]} 84. Kb2 {[%clk 0:00:22.8]}
84... Ke7 {[%clk 0:00:04.4]} 85. Kc2 {[%clk 0:00:23]} 85... Nc6 {[%clk
0:00:04.9]} 86. Kb2 {[%clk 0:00:23.2]} 86... Nd4 {[%clk 0:00:05.4]} 87. Ka2
{[%clk 0:00:21.8]} 87... Nxe6 {[%clk 0:00:04.4]} 88. Bxe6 {[%clk 0:00:20]} 88...
Kxe6 {[%clk 0:00:05.3]} 89. Kb3 {[%clk 0:00:19.9]} 89... Kd5 {[%clk 0:00:06]}
90. Kxb4 {[%clk 0:00:20.8]} 1/2-1/2

[Event "*** Titled Tuesday Blitz"]
[Site "Chess.com"]
[Date "2020.11.24"]
[Round "1"]
[White "Bacyanide"]
[Black "sjam6687"]
[Result "1/2-1/2"]
[WhiteElo "2418"]
[BlackElo "2789"]
[TimeControl "180+1"]
[EndTime "10:24:02 PST"]
[Termination "Game drawn - insufficient material"]

1. d4 {[%clk 0:03:00.4]} 1... d5 {[%clk 0:02:58.5]} 2. Nf3 {[%clk 0:02:59.4]}
2... Nf6 {[%clk 0:02:58.2]} 3. c4 {[%clk 0:02:59.2]} 3... e6 {[%clk 0:02:56.6]}
4. Nc3 {[%clk 0:02:58.6]} 4... Be7 {[%clk 0:02:54.6]} 5. Bg5 {[%clk 0:02:57.8]}
5... O-O {[%clk 0:02:53]} 6. e3 {[%clk 0:02:57.3]} 6... Nbd7 {[%clk 0:02:50.2]}
7. Qc2 {[%clk 0:02:56.1]} 7... c5 {[%clk 0:02:47]} 8. cxd5 {[%clk 0:02:48]} 8...
cxd4 {[%clk 0:02:43.9]} 9. Nxd4 {[%clk 0:02:34.7]} 9... Nxd5 {[%clk 0:02:42.1]}
10. Bxe7 {[%clk 0:02:35.6]} 10... Nxe7 {[%clk 0:02:37.7]} 11. Bd3 {[%clk
0:02:33.8]} 11... Nf6 {[%clk 0:02:36.4]} 12. O-O {[%clk 0:02:29.3]} 12... b6
{[%clk 0:02:33.7]} 13. Ne4 {[%clk 0:02:23.8]} 13... Nfd5 {[%clk 0:02:28.6]} 14.
a3 {[%clk 0:02:09.1]} 14... h6 {[%clk 0:02:23.6]} 15. Rfd1 {[%clk 0:02:07.8]}
15... Bb7 {[%clk 0:02:22.1]} 16. Rac1 {[%clk 0:02:04.9]} 16... Rc8 {[%clk
0:02:20.1]} 17. Qe2 {[%clk 0:01:37.7]} 17... Nf5 {[%clk 0:02:11.4]} 18. Nxf5
{[%clk 0:01:32]} 18... exf5 {[%clk 0:02:12.3]} 19. Ng3 {[%clk 0:01:32.8]} 19...
f4 {[%clk 0:02:08.7]} 20. Nf5 {[%clk 0:01:27.7]} 20... Qf6 {[%clk 0:02:04.2]}
21. e4 {[%clk 0:01:18.6]} 21... Rxc1 {[%clk 0:01:55.8]} 22. Rxc1 {[%clk
0:01:17.8]} 22... Re8 {[%clk 0:01:55.8]} 23. Qg4 {[%clk 0:01:13.7]} 23... Ne7
{[%clk 0:01:50.9]} 24. Qxf4 {[%clk 0:01:12.8]} 24... Nxf5 {[%clk 0:01:48]} 25.
Qxf5 {[%clk 0:01:09.6]} 25... Qxb2 {[%clk 0:01:46]} 26. Rc7 {[%clk 0:01:04.2]}
26... Qa1+ {[%clk 0:01:27.6]} 27. Bf1 {[%clk 0:01:04.1]} 27... Ba6 {[%clk
0:01:27.5]} 28. Qxf7+ {[%clk 0:01:03.2]} 28... Kh7 {[%clk 0:01:25.2]} 29. h4
{[%clk 0:01:00.1]} 29... Qxf1+ {[%clk 0:01:20.8]} 30. Kh2 {[%clk 0:01:00.1]}
30... Rg8 {[%clk 0:01:21.1]} 31. h5 {[%clk 0:00:56.4]} 31... Bd3 {[%clk
0:01:16]} 32. Qg6+ {[%clk 0:00:44.4]} 32... Kh8 {[%clk 0:01:13.5]} 33. Rxg7
{[%clk 0:00:23]} 33... Rxg7 {[%clk 0:01:11.8]} 34. Qxh6+ {[%clk 0:00:21.6]}
34... Kg8 {[%clk 0:01:12]} 35. Qe6+ {[%clk 0:00:21.3]} 35... Kf8 {[%clk
0:01:09.6]} 36. Qc8+ {[%clk 0:00:20.1]} 36... Ke7 {[%clk 0:01:08.3]} 37. Qc7+
{[%clk 0:00:20.3]} 37... Ke6 {[%clk 0:01:07.4]} 38. Qc6+ {[%clk 0:00:19.5]}
38... Ke5 {[%clk 0:01:04.3]} 39. Qd5+ {[%clk 0:00:18.9]} 39... Kf6 {[%clk
0:01:04.5]} 40. Qd6+ {[%clk 0:00:18.7]} 40... Kg5 {[%clk 0:01:01.7]} 41. Qe5+
{[%clk 0:00:15.5]} 41... Kh6 {[%clk 0:01:01.7]} 42. Qf6+ {[%clk 0:00:15.5]}
42... Kxh5 {[%clk 0:00:58.1]} 43. Qxg7 {[%clk 0:00:16]} 43... Qxf2 {[%clk
0:00:55.4]} 44. Qh7+ {[%clk 0:00:16.3]} 44... Kg5 {[%clk 0:00:55.5]} 45. Qg7+
{[%clk 0:00:17]} 45... Kf4 {[%clk 0:00:54]} 46. Qf7+ {[%clk 0:00:14]} 46... Ke3
{[%clk 0:00:52.4]} 47. Qxa7 {[%clk 0:00:14.6]} 47... Kxe4 {[%clk 0:00:49.7]} 48.
Qb7+ {[%clk 0:00:14.1]} 48... Ke5 {[%clk 0:00:48]} 49. Qc7+ {[%clk 0:00:13.8]}
49... Kd5 {[%clk 0:00:46.1]} 50. Qb7+ {[%clk 0:00:13.3]} 50... Kc4 {[%clk
0:00:44.8]} 51. Qc7+ {[%clk 0:00:14]} 51... Kd4 {[%clk 0:00:44.7]} 52. Qd6+
{[%clk 0:00:14.4]} 52... Kc3 {[%clk 0:00:42.2]} 53. Qb4+ {[%clk 0:00:13.4]}
53... Kc2 {[%clk 0:00:40.9]} 54. Qa4+ {[%clk 0:00:13.7]} 54... Kb2 {[%clk
0:00:39.6]} 55. Qb4+ {[%clk 0:00:14.1]} 55... Ka2 {[%clk 0:00:37.6]} 56. a4
{[%clk 0:00:14.8]} 56... Qf5 {[%clk 0:00:32.4]} 57. Qxb6 {[%clk 0:00:10.5]}
57... Qf4+ {[%clk 0:00:30]} 58. Kg1 {[%clk 0:00:09.6]} 58... Qxa4 {[%clk
0:00:30.2]} 59. Qf2+ {[%clk 0:00:07.6]} 59... Kb1 {[%clk 0:00:28.6]} 60. Qg3
{[%clk 0:00:08.3]} 60... Qd4+ {[%clk 0:00:24.8]} 61. Kh2 {[%clk 0:00:09.2]}
61... Kb2 {[%clk 0:00:22.7]} 62. Qh3 {[%clk 0:00:08.7]} 62... Be2 {[%clk
0:00:21.2]} 63. Qg3 {[%clk 0:00:09.6]} 63... Bc4 {[%clk 0:00:18.4]} 64. Qh3
{[%clk 0:00:09.5]} 64... Be2 {[%clk 0:00:17.2]} 65. Qg3 {[%clk 0:00:10.4]} 65...
Bc4 {[%clk 0:00:17.1]} 66. Qh3 {[%clk 0:00:10.7]} 66... Bd5 {[%clk 0:00:17.8]}
67. Qg3 {[%clk 0:00:11.6]} 67... Qe4 {[%clk 0:00:17.9]} 68. Qh3 {[%clk
0:00:11.4]} 68... Kc2 {[%clk 0:00:17.6]} 69. Qg3 {[%clk 0:00:11.9]} 69... Kd2
{[%clk 0:00:18.5]} 70. Qf2+ {[%clk 0:00:12]} 70... Kc3 {[%clk 0:00:18.1]} 71.
Qf3+ {[%clk 0:00:12.1]} 71... Kd4 {[%clk 0:00:19]} 72. Qxe4+ {[%clk 0:00:12.1]}
72... Bxe4 {[%clk 0:00:19.8]} 73. g3 {[%clk 0:00:13]} 73... Bg6 {[%clk
0:00:19.8]} 74. Kh3 {[%clk 0:00:13.9]} 74... Bd3 {[%clk 0:00:20.2]} 75. Kh4
{[%clk 0:00:14.8]} 75... Ke5 {[%clk 0:00:20.5]} 76. Kg5 {[%clk 0:00:15.7]} 76...
Bc2 {[%clk 0:00:20.6]} 77. Kh6 {[%clk 0:00:15.4]} 77... Bb1 {[%clk 0:00:21.5]}
78. g4 {[%clk 0:00:16.3]} 78... Bc2 {[%clk 0:00:22.3]} 79. g5 {[%clk 0:00:17.2]}
79... Bb1 {[%clk 0:00:22.6]} 80. g6 {[%clk 0:00:18.1]} 80... Bxg6 {[%clk
0:00:21.5]} 1/2-1/2

[Event "*** Titled Tuesday Blitz"]
[Site "Chess.com"]
[Date "2020.11.24"]
[Round "1"]
[White "ErikRonka"]
[Black "jacky72"]
[Result "1/2-1/2"]
[WhiteElo "2388"]
[BlackElo "2717"]
[TimeControl "180+1"]
[EndTime "10:24:08 PST"]
[Termination "Game drawn by repetition"]

1. e4 {[%clk 0:02:58.4]} 1... e5 {[%clk 0:02:58.3]} 2. Nf3 {[%clk 0:02:58.4]}
2... Nc6 {[%clk 0:02:58.2]} 3. Bb5 {[%clk 0:02:58.9]} 3... a6 {[%clk 0:02:57.7]}
4. Ba4 {[%clk 0:02:59.3]} 4... d6 {[%clk 0:02:57.9]} 5. O-O {[%clk 0:02:51.2]}
5... Bd7 {[%clk 0:02:57.6]} 6. c3 {[%clk 0:02:50.5]} 6... g6 {[%clk 0:02:56.6]}
7. d4 {[%clk 0:02:49.1]} 7... Bg7 {[%clk 0:02:56.8]} 8. Bg5 {[%clk 0:02:45.9]}
8... f6 {[%clk 0:02:54.2]} 9. Be3 {[%clk 0:02:45.5]} 9... Nh6 {[%clk 0:02:50.1]}
10. Bb3 {[%clk 0:02:37.1]} 10... Nf7 {[%clk 0:02:47.3]} 11. Nbd2 {[%clk
0:02:30.6]} 11... O-O {[%clk 0:02:45.9]} 12. a4 {[%clk 0:02:23.8]} 12... Kh8
{[%clk 0:02:43.4]} 13. dxe5 {[%clk 0:02:20.5]} 13... Nfxe5 {[%clk 0:02:36.4]}
14. Nxe5 {[%clk 0:01:56.7]} 14... fxe5 {[%clk 0:02:27.5]} 15. Re1 {[%clk
0:01:45.7]} 15... Qh4 {[%clk 0:02:25.6]} 16. Nf1 {[%clk 0:01:44.9]} 16... Bh6
{[%clk 0:02:22.6]} 17. Qd2 {[%clk 0:01:42.4]} 17... Bxe3 {[%clk 0:02:22.3]} 18.
Rxe3 {[%clk 0:01:40.8]} 18... Rf6 {[%clk 0:02:15.3]} 19. Bd5 {[%clk 0:01:28.5]}
19... Raf8 {[%clk 0:02:15]} 20. Re2 {[%clk 0:01:17.8]} 20... Bg4 {[%clk
0:02:11.1]} 21. f3 {[%clk 0:01:17.3]} 21... Be6 {[%clk 0:02:06.9]} 22. Bxe6
{[%clk 0:01:13.6]} 22... Rxe6 {[%clk 0:02:07.8]} 23. Ne3 {[%clk 0:01:14.1]}
23... Ne7 {[%clk 0:02:06.7]} 24. Nd5 {[%clk 0:01:09.8]} 24... Rc8 {[%clk
0:02:04.5]} 25. b4 {[%clk 0:01:04.7]} 25... b6 {[%clk 0:02:04.1]} 26. a5 {[%clk
0:00:59.9]} 26... b5 {[%clk 0:02:02.1]} 27. c4 {[%clk 0:00:52.5]} 27... bxc4
{[%clk 0:02:01]} 28. Rc1 {[%clk 0:00:52.2]} 28... c6 {[%clk 0:01:58]} 29. Nb6
{[%clk 0:00:51.2]} 29... Rd8 {[%clk 0:01:55.8]} 30. Rxc4 {[%clk 0:00:50.5]}
30... Qf6 {[%clk 0:01:49.2]} 31. Rc1 {[%clk 0:00:40.9]} 31... d5 {[%clk
0:01:48.9]} 32. Qd3 {[%clk 0:00:38.2]} 32... Qg5 {[%clk 0:01:39.4]} 33. Rd1
{[%clk 0:00:36.5]} 33... Rf8 {[%clk 0:01:36.5]} 34. Rf1 {[%clk 0:00:24.7]} 34...
Ref6 {[%clk 0:01:31.9]} 35. Ref2 {[%clk 0:00:24.5]} 35... dxe4 {[%clk
0:01:27.1]} 36. Qxe4 {[%clk 0:00:23.9]} 36... Rf4 {[%clk 0:01:23.5]} 37. Qd3
{[%clk 0:00:21]} 37... Rxb4 {[%clk 0:01:20.1]} 38. Qd6 {[%clk 0:00:19.4]} 38...
Rd4 {[%clk 0:01:15.1]} 39. Qe6 {[%clk 0:00:16.3]} 39... Qf6 {[%clk 0:01:14.8]}
40. Qb3 {[%clk 0:00:15.7]} 40... Nd5 {[%clk 0:01:11]} 41. Nd7 {[%clk 0:00:13.7]}
41... Qe7 {[%clk 0:01:07.8]} 42. Nxf8 {[%clk 0:00:14.1]} 42... Qxf8 {[%clk
0:01:08.7]} 43. Qb7 {[%clk 0:00:13.8]} 43... Nb4 {[%clk 0:01:04.3]} 44. Rb1
{[%clk 0:00:12]} 44... Nd3 {[%clk 0:01:01.3]} 45. Rd2 {[%clk 0:00:11.2]} 45...
Qc5 {[%clk 0:01:01.8]} 46. Kh1 {[%clk 0:00:10.4]} 46... Rb4 {[%clk 0:00:56]} 47.
Qc8+ {[%clk 0:00:08.6]} 47... Kg7 {[%clk 0:00:56.4]} 48. Rf1 {[%clk 0:00:08.6]}
48... Rd4 {[%clk 0:00:50.8]} 49. Qc7+ {[%clk 0:00:07.3]} 49... Kh6 {[%clk
0:00:50.1]} 50. Re2 {[%clk 0:00:07.8]} 50... Rh4 {[%clk 0:00:44.5]} 51. Qb6
{[%clk 0:00:06.1]} 51... Qd6 {[%clk 0:00:40.5]} 52. Qe3+ {[%clk 0:00:06]} 52...
Kg7 {[%clk 0:00:35.1]} 53. Rd2 {[%clk 0:00:05.3]} 53... e4 {[%clk 0:00:31.2]}
54. g3 {[%clk 0:00:04]} 54... Qxg3 {[%clk 0:00:31.4]} 55. Qxe4 {[%clk 0:00:02]}
55... Nf4 {[%clk 0:00:19.2]} 56. Rdf2 {[%clk 0:00:01.4]} 56... Kh6 {[%clk
0:00:16.8]} 57. Qe7 {[%clk 0:00:01.5]} 57... Qh3 {[%clk 0:00:14.2]} 58. Qe3
{[%clk 0:00:01.7]} 58... g5 {[%clk 0:00:14.1]} 59. Qc1 {[%clk 0:00:02.1]} 59...
Kh5 {[%clk 0:00:14.1]} 60. Qc5 {[%clk 0:00:02.6]} 60... Nd3 {[%clk 0:00:13]} 61.
Qc2 {[%clk 0:00:03.5]} 61... Nxf2+ {[%clk 0:00:12.8]} 62. Qxf2 {[%clk
0:00:04.4]} 62... Rf4 {[%clk 0:00:13]} 63. Rg1 {[%clk 0:00:05.3]} 63... Rxf3
{[%clk 0:00:12.8]} 64. Qe2 {[%clk 0:00:05.7]} 64... g4 {[%clk 0:00:12.6]} 65.
Qe5+ {[%clk 0:00:05.2]} 65... Kh4 {[%clk 0:00:13.1]} 66. Qe7+ {[%clk 0:00:04.9]}
66... Kh5 {[%clk 0:00:13.6]} 67. Qe5+ {[%clk 0:00:05.3]} 67... Kg6 {[%clk
0:00:13.5]} 68. Qe6+ {[%clk 0:00:05.4]} 68... Kg5 {[%clk 0:00:13.5]} 69. Qe5+
{[%clk 0:00:04.4]} 69... Rf5 {[%clk 0:00:13.5]} 70. Qg7+ {[%clk 0:00:04.6]}
70... Kf4 {[%clk 0:00:14.1]} 71. Qd4+ {[%clk 0:00:04.1]} 71... Kf3 {[%clk
0:00:13.4]} 72. Qd3+ {[%clk 0:00:03.8]} 72... Kf4 {[%clk 0:00:14]} 73. Qd4+
{[%clk 0:00:04.1]} 73... Kg5 {[%clk 0:00:13.3]} 74. Qg7+ {[%clk 0:00:04.5]}
74... Kh5 {[%clk 0:00:13.4]} 75. Qxh7+ {[%clk 0:00:04]} 75... Kg5 {[%clk
0:00:14.1]} 76. Qg7+ {[%clk 0:00:04.6]} 76... Kf4 {[%clk 0:00:13.9]} 77. Qd4+
{[%clk 0:00:04.6]} 77... Kg5 {[%clk 0:00:14.2]} 78. Qg7+ {[%clk 0:00:04.5]}
78... Kf4 {[%clk 0:00:14.1]} 79. Qd4+ {[%clk 0:00:04.4]} 79... Kg5 {[%clk
0:00:08.8]} 80. Qg7+ {[%clk 0:00:03.6]} 1/2-1/2